fUSD/lending_fUSD_20260503
["ID","MTS","AMOUNT","RATE_DAILY","PERIOD"]
[421499592,1777761034000,-307.75430072,0.000148,2]
[421499600,1777761034000,-500.0,0.00014897,2]
[421499596,1777761034000,-193.52502828,0.00014877,2]
[421499599,1777761034000,-500.0,0.00014891,2]
[421499613,1777761034000,-908.3209474,0.00014899,2]
[421499597,1777761034000,-155.57864443,0.0001489,2]
[421499602,1777761034000,-555.29974917,0.00014897,2]
[421499595,1777761034000,-150.0,0.00014877,2]
[421499598,1777761034000,-200.0,0.00014891,2]
[421499601,1777761034000,-500.0,0.00014897,2]
[421499604,1777761034000,-177.886,0.00014899,2]
[421499603,1777761034000,-3215.498,0.00014899,2]
[421499610,1777761034000,-383.11341423,0.00014899,2]
[421499606,1777761034000,-250.0,0.00014899,2]
[421499611,1777761034000,-500.0,0.00014899,2]
[421499608,1777761034000,-500.0,0.00014899,2]
[421499614,1777761034000,-908.3209474,0.00014899,2]
[421499607,1777761034000,-500.0,0.00014899,2]
[421499594,1777761034000,-150.0,0.00014806,2]
[421499645,1777761034000,-908.3209474,0.00014899,2]
[421499670,1777761034000,-905.93062912,0.00014899,2]
[421499640,1777761034000,-908.3209474,0.00014899,2]
[421499681,1777761034000,-905.93062912,0.00014899,2]
[421499644,1777761034000,-908.3209474,0.00014899,2]
[421499685,1777761034000,-905.93062912,0.00014899,2]
[421499676,1777761034000,-905.93062912,0.00014899,2]
[421499678,1777761034000,-905.93062912,0.00014899,2]
[421499683,1777761034000,-905.93062912,0.00014899,2]
[421499679,1777761034000,-905.93062912,0.00014899,2]
[421499675,1777761034000,-905.93062912,0.00014899,2]
[421499677,1777761034000,-905.93062912,0.00014899,2]
[421499682,1777761034000,-905.93062912,0.00014899,2]
[421499686,1777761034000,-905.93062912,0.00014899,2]
[421499688,1777761034000,-905.93062912,0.00014899,2]
[421499684,1777761034000,-905.93062912,0.00014899,2]
[421499691,1777761034000,-905.93062912,0.00014899,2]
[421499697,1777761034000,-500.0,0.00014899,2]
[421499690,1777761034000,-905.93062912,0.00014899,2]
[421499687,1777761034000,-905.93062912,0.00014899,2]
[421499692,1777761034000,-905.93062912,0.00014899,2]
[421499695,1777761034000,-500.0,0.00014899,2]
[421499693,1777761034000,-905.93062912,0.00014899,2]
[421499696,1777761034000,-445.68593059,0.00014899,2]
[421499694,1777761034000,-500.0,0.00014899,2]
[421499699,1777761034000,-252.89091526,0.00014899,2]
[421499698,1777761034000,-500.0,0.00014899,2]
[421499701,1777761034000,-202.35034622,0.000149,2]
[421499700,1777761034000,-243.22565378,0.000149,2]
[421499689,1777761034000,-905.93062912,0.00014899,2]
[421499673,1777761034000,-905.93062912,0.00014899,2]
[421499680,1777761034000,-905.93062912,0.00014899,2]
[421499668,1777761034000,-205.21541137,0.00014899,2]
[421499643,1777761034000,-908.3209474,0.00014899,2]
[421499641,1777761034000,-908.3209474,0.00014899,2]
[421499647,1777761034000,-908.3209474,0.00014899,2]
[421499650,1777761034000,-908.3209474,0.00014899,2]
[421499649,1777761034000,-908.3209474,0.00014899,2]
[421499648,1777761034000,-908.3209474,0.00014899,2]
[421499646,1777761034000,-908.3209474,0.00014899,2]
[421499651,1777761034000,-908.3209474,0.00014899,2]
[421499652,1777761034000,-908.3209474,0.00014899,2]
[421499674,1777761034000,-905.93062912,0.00014899,2]
[421499660,1777761034000,-908.3209474,0.00014899,2]
[421499657,1777761034000,-465.99471814,0.00014899,2]
[421499662,1777761034000,-908.3209474,0.00014899,2]
[421499654,1777761034000,-908.3209474,0.00014899,2]
[421499656,1777761034000,-908.3209474,0.00014899,2]
[421499667,1777761034000,-672.61935453,0.00014899,2]
[421499659,1777761034000,-908.3209474,0.00014899,2]
[421499665,1777761034000,-905.93062912,0.00014899,2]
[421499666,1777761034000,-28.09586322,0.00014899,2]
[421499663,1777761034000,-310.86946968,0.00014899,2]
[421499669,1777761034000,-905.93062912,0.00014899,2]
[421499671,1777761034000,-905.93062912,0.00014899,2]
[421499672,1777761034000,-905.93062912,0.00014899,2]
[421499664,1777761034000,-905.93062912,0.00014899,2]
[421499653,1777761034000,-908.3209474,0.00014899,2]
[421499655,1777761034000,-908.3209474,0.00014899,2]
[421499661,1777761034000,-908.3209474,0.00014899,2]
[421499705,1777761035000,-1711.59719033,0.000149,2]
[421499702,1777761035000,-115.46313824,0.000149,2]
[421499703,1777761035000,-4934.76220405,0.000149,2]
[421499704,1777761035000,-46595.01110088,0.000149,2]
[421499710,1777761038000,-3596.22805072,0.000149,2]
[421499709,1777761038000,-796.55986639,0.000149,2]
[421499711,1777761038000,-4810.94195086,0.000149,2]
[421499713,1777761038000,-9346.62959513,0.000149,2]
[421499712,1777761038000,-1513.16049576,0.000149,2]
[421499714,1777761038000,-20955.83799274,0.000149,2]
[421499721,1777761038000,-1235.27936661,0.000149,2]
[421499715,1777761038000,-4934.206548,0.000149,2]
[421499717,1777761038000,-829.67010334,0.000149,2]
[421499718,1777761038000,-380.52932165,0.000149,2]
[421499719,1777761038000,-2098.95,0.000149,2]
[421499720,1777761038000,-1084.05748939,0.000149,2]
[421499716,1777761038000,-3293.07185448,0.000149,2]
[421499727,1777761040000,-504.28224,0.000149,2]
[421499723,1777761040000,-1135.96567531,0.000149,2]
[421499724,1777761040000,-2316.90688967,0.000149,2]
[421499726,1777761040000,-83231.823612,0.000149,2]
[421499725,1777761040000,-19047.22198288,0.000149,2]
[421499731,1777761040000,-1819.1209591,0.000149,2]
[421499733,1777761040000,-159923.13314586,0.000149,2]
[421499730,1777761040000,-972.98655423,0.000149,2]
[421499729,1777761040000,-390.204,0.000149,2]
[421499732,1777761040000,-36884.8876836,0.000149,2]
[421499734,1777761040000,-16337.6022456,0.000149,2]
[421499735,1777761040000,-475.80353924,0.000149,2]
[421499728,1777761040000,-1732.44944368,0.000149,2]
[421499736,1777761041000,-1012.13922078,0.000149,2]
[421499750,1777761043000,-4051.58577808,0.000149,2]
[421499751,1777761043000,-8185.36241563,0.000149,2]
[421499752,1777761043000,-39.76621688,0.000149,2]
[421499753,1777761043000,-1393.35230476,0.000149,2]
[421499755,1777761043000,-500.0,0.000149,2]
[421499756,1777761043000,-5700.45216036,0.000149,2]
[421499754,1777761043000,-341.04,0.000149,2]
[421499770,1777761046000,-651.98542784,0.000149,2]
[421499767,1777761046000,-65000.0,0.000148,2]
[421499768,1777761046000,-33903.5355,0.000148,2]
[421499769,1777761046000,-5197.80841089,0.000149,2]
[421499773,1777761046000,-494.61771879,0.000149,2]
[421499774,1777761046000,-4608.67470744,0.000149,2]
[421499775,1777761046000,-1452.8805115,0.000149,2]
[421499772,1777761046000,-21762.28695369,0.000149,2]
[421499776,1777761046000,-4178.82843024,0.000149,2]
[421499771,1777761046000,-86311.82447968,0.000149,2]
[421499803,1777761053000,500.0,0.00029316,120]
[421499802,1777761053000,500.0,0.0002874,120]
[421499804,1777761054000,500.0,0.00029891,120]
[421499806,1777761062000,510.73820984,0.000107,2]
[421499813,1777761710000,-500.0,0.00010425,2]
[421499808,1777761710000,-300.0,0.00010424,2]
[421499809,1777761710000,-1200.0,0.00010424,2]
[421499811,1777761710000,-500.0,0.00010425,2]
[421499812,1777761710000,-500.0,0.00010425,2]
[421499810,1777761710000,-500.0,0.00010425,2]
[421499814,1777761710000,-394.87936333,0.00010425,2]
[421499816,1777761710000,-150.0,0.00010425,2]
[421499818,1777761710000,-150.0,0.00010425,2]
[421499817,1777761710000,-150.0,0.00010425,2]
[421499820,1777761710000,-146.07835303,0.00010425,2]
[421499819,1777761710000,-159.04228364,0.00010425,2]
[421499815,1777761710000,-150.0,0.00010425,2]
[421499821,1777761737000,-231.12748203,0.00010424,2]
[421499822,1777761921000,-1200.0,0.00010424,2]
[421499824,1777762197000,186.81,8.716e-05,2]
[421499823,1777762197000,186.81,5.811e-05,2]
[421499843,1777762232000,-162.63564596,0.00010698,2]
[421499845,1777762232000,-500.0,0.00010699,2]
[421499844,1777762232000,-150.0,0.00010698,2]
[421499847,1777762232000,-500.0,0.00010699,2]
[421499848,1777762232000,-500.0,0.00010699,2]
[421499852,1777762232000,-507.74225853,0.00010699,2]
[421499849,1777762232000,-500.0,0.00010699,2]
[421499850,1777762232000,-210.55317869,0.00010699,2]
[421499851,1777762232000,-500.0,0.00010699,2]
[421499841,1777762232000,-300.0,0.00010689,2]
[421499856,1777762232000,-500.0,0.00010699,2]
[421499846,1777762232000,-275.30748203,0.00010699,2]
[421499840,1777762232000,-1200.0,0.00010688,2]
[421499836,1777762232000,-129.34553041,0.00010561,2]
[421499837,1777762232000,-21.65446959,0.00010561,2]
[421499838,1777762232000,-151.0,0.00010561,2]
[421499842,1777762232000,-20491.0982577,0.0001069,2]
[421499835,1777762232000,-151.0,0.00010561,2]
[421499834,1777762232000,-151.0,0.00010561,2]
[421499829,1777762232000,-150.0,0.00010425,2]
[421499832,1777762232000,-129.18834772,0.000105,2]
[421499830,1777762232000,-159.53124321,0.00010425,2]
[421499831,1777762232000,-95.33165228,0.000105,2]
[421499828,1777762232000,-150.0,0.00010425,2]
[421499827,1777762232000,-185.15504307,0.00010425,2]
[421499833,1777762232000,-200.0,0.00010561,2]
[421499863,1777762232000,-500.0,0.00010699,2]
[421499839,1777762232000,-187.05520104,0.00010561,2]
[421499861,1777762232000,-500.0,0.00010699,2]
[421499853,1777762232000,-228.55002007,0.00010699,2]
[421499857,1777762232000,-495.4665729,0.00010699,2]
[421499886,1777762232000,-500.0,0.00010699,2]
[421499885,1777762232000,-500.0,0.00010699,2]
[421499883,1777762232000,-500.0,0.00010699,2]
[421499884,1777762232000,-500.0,0.00010699,2]
[421499882,1777762232000,-500.0,0.00010699,2]
[421499881,1777762232000,-288.82382718,0.00010699,2]
[421499880,1777762232000,-500.0,0.00010699,2]
[421499877,1777762232000,-500.0,0.00010699,2]
[421499876,1777762232000,-500.0,0.00010699,2]
[421499878,1777762232000,-500.0,0.00010699,2]
[421499860,1777762232000,-500.0,0.00010699,2]
[421499872,1777762232000,-500.0,0.00010699,2]
[421499871,1777762232000,-500.0,0.00010699,2]
[421499874,1777762232000,-500.0,0.00010699,2]
[421499879,1777762232000,-500.0,0.00010699,2]
[421499870,1777762232000,-500.0,0.00010699,2]
[421499859,1777762232000,-500.0,0.00010699,2]
[421499864,1777762232000,-500.0,0.00010699,2]
[421499869,1777762232000,-500.0,0.00010699,2]
[421499858,1777762232000,-500.0,0.00010699,2]
[421499854,1777762232000,-500.0,0.00010699,2]
[421499862,1777762232000,-500.0,0.00010699,2]
[421499855,1777762232000,-500.0,0.00010699,2]
[421499865,1777762232000,-500.0,0.00010699,2]
[421499868,1777762232000,-500.0,0.00010699,2]
[421499875,1777762232000,-500.0,0.00010699,2]
[421499873,1777762232000,-500.0,0.00010699,2]
[421499867,1777762232000,-500.0,0.00010699,2]
[421499866,1777762232000,-500.0,0.00010699,2]
[421499889,1777762233000,-500.0,0.00010699,2]
[421499887,1777762233000,-500.0,0.00010699,2]
[421499892,1777762233000,-500.0,0.00010699,2]
[421499888,1777762233000,-500.0,0.00010699,2]
[421499895,1777762233000,-500.0,0.00010699,2]
[421499893,1777762233000,-500.0,0.00010699,2]
[421499894,1777762233000,-500.0,0.00010699,2]
[421499890,1777762233000,-500.0,0.00010699,2]
[421499897,1777762233000,-500.0,0.00010699,2]
[421499901,1777762233000,-198480.08071154,0.000107,2]
[421499896,1777762233000,-500.0,0.00010699,2]
[421499902,1777762233000,-4816.86457472,0.000107,2]
[421499903,1777762233000,-343.32323318,0.000107,2]
[421499898,1777762233000,-500.0,0.00010699,2]
[421499899,1777762233000,-295.0,0.00010699,2]
[421499900,1777762233000,-500.0,0.00010699,2]
[421499891,1777762233000,-500.0,0.00010699,2]
[421499908,1777762238000,-300.0344643,0.000107,2]
[421499907,1777762238000,-380.52932165,0.000107,2]
[421499906,1777762238000,-829.67010334,0.000107,2]
[421499905,1777762238000,-48993.48432967,0.000107,2]
[421499904,1777762238000,-394.12381061,0.000107,2]
[421499944,1777762240000,-1146.14487777,0.000107,2]
[421499945,1777762240000,-23921.5,0.000107,2]
[421499947,1777762240000,-844.25671577,0.000107,2]
[421499946,1777762240000,-2207.9953582,0.000107,2]
[421499982,1777762241000,-2850.29,0.00013174,2]
[421499976,1777762241000,-2850.29,0.00012868,2]
[421499977,1777762241000,-433.0,0.0001287,2]
[421499975,1777762241000,-189.59,0.00012562,2]
[421499990,1777762241000,-150.0,0.00013216,2]
[421499980,1777762241000,-250.0,0.00013,2]
[421499992,1777762241000,-150.0,0.00013461,2]
[421499996,1777762241000,-500.0,0.00013698,2]
[421499998,1777762241000,-500.0,0.00013698,2]
[421499994,1777762241000,-2850.29,0.0001348,2]
[421499981,1777762241000,-250.0,0.00013,2]
[421500014,1777762241000,-500.0,0.00013698,2]
[421499979,1777762241000,-2351.0,0.00012932,2]
[421499988,1777762241000,-150.0,0.00013216,2]
[421499985,1777762241000,-150.0,0.00013216,2]
[421500004,1777762241000,-500.0,0.00013698,2]
[421500007,1777762241000,-500.0,0.00013698,2]
[421500006,1777762241000,-500.0,0.00013698,2]
[421500000,1777762241000,-500.0,0.00013698,2]
[421500009,1777762241000,-500.0,0.00013698,2]
[421499968,1777762241000,-200.0,0.00012154,2]
[421500002,1777762241000,-500.0,0.00013698,2]
[421499983,1777762241000,-288.44951876,0.00013216,2]
[421499972,1777762241000,-470.35,0.00012344,2]
[421500055,1777762241000,-500.0,0.00013699,2]
[421499970,1777762241000,-2850.29,0.00012255,2]
[421500011,1777762241000,-500.0,0.00013698,2]
[421499948,1777762241000,-1141.41776035,0.000107,2]
[421499949,1777762241000,-114116.44942497,0.000107,2]
[421499951,1777762241000,-12413.51700788,0.00011099,2]
[421499950,1777762241000,-567.99921022,0.00010999,2]
[421499954,1777762241000,-164.79561381,0.00011466,2]
[421499952,1777762241000,-11403.00803772,0.00011099,2]
[421499953,1777762241000,-200.0,0.00011109,2]
[421499957,1777762241000,-257.57418643,0.00011467,2]
[421499964,1777762241000,-200.0,0.00011657,2]
[421499955,1777762241000,-250.0,0.00011467,2]
[421499965,1777762241000,-255.0,0.00011736,2]
[421499958,1777762241000,-300.0,0.00011467,2]
[421499959,1777762241000,-500.0,0.00011468,2]
[421499967,1777762241000,-1680.0,0.00011757,2]
[421499961,1777762241000,-761.0289253,0.00011597,2]
[421499960,1777762241000,-150.0,0.00011554,2]
[421499966,1777762241000,-420.0,0.0001175,2]
[421499963,1777762241000,-186.81,0.00011622,2]
[421499978,1777762241000,-411.0,0.00012916,2]
[421499973,1777762241000,-748.99,0.00012549,2]
[421499974,1777762241000,-2850.29,0.00012561,2]
[421499969,1777762241000,-201.69812677,0.00012205,2]
[421499971,1777762241000,-2000.0,0.00012267,2]
[421500012,1777762241000,-500.0,0.00013698,2]
[421500060,1777762241000,-500.0,0.00013699,2]
[421500008,1777762241000,-500.0,0.00013698,2]
[421500036,1777762241000,-500.0,0.00013699,2]
[421500038,1777762241000,-500.0,0.00013699,2]
[421500039,1777762241000,-500.0,0.00013699,2]
[421500043,1777762241000,-500.0,0.00013699,2]
[421500053,1777762241000,-500.0,0.00013699,2]
[421500054,1777762241000,-500.0,0.00013699,2]
[421500048,1777762241000,-500.0,0.00013699,2]
[421500042,1777762241000,-500.0,0.00013699,2]
[421500050,1777762241000,-500.0,0.00013699,2]
[421500046,1777762241000,-500.0,0.00013699,2]
[421500033,1777762241000,-500.0,0.00013699,2]
[421500044,1777762241000,-500.0,0.00013699,2]
[421500049,1777762241000,-500.0,0.00013699,2]
[421500051,1777762241000,-500.0,0.00013699,2]
[421500052,1777762241000,-500.0,0.00013699,2]
[421500061,1777762241000,-500.0,0.00013699,2]
[421500059,1777762241000,-500.0,0.00013699,2]
[421500062,1777762241000,-500.0,0.00013699,2]
[421500056,1777762241000,-500.0,0.00013699,2]
[421500058,1777762241000,-500.0,0.00013699,2]
[421500057,1777762241000,-500.0,0.00013699,2]
[421500005,1777762241000,-500.0,0.00013698,2]
[421500047,1777762241000,-607.52586438,0.00013699,2]
[421500041,1777762241000,-500.0,0.00013699,2]
[421500045,1777762241000,-500.0,0.00013699,2]
[421500035,1777762241000,-500.0,0.00013699,2]
[421500034,1777762241000,-500.0,0.00013699,2]
[421500010,1777762241000,-500.0,0.00013698,2]
[421500015,1777762241000,-500.0,0.00013698,2]
[421500017,1777762241000,-500.0,0.00013698,2]
[421500028,1777762241000,-195.75,0.00013699,2]
[421500027,1777762241000,-200.0,0.00013699,2]
[421500020,1777762241000,-500.0,0.00013698,2]
[421500022,1777762241000,-500.0,0.00013698,2]
[421500025,1777762241000,-5006.71699144,0.00013699,2]
[421500016,1777762241000,-500.0,0.00013698,2]
[421500023,1777762241000,-171.9244399,0.00013698,2]
[421500013,1777762241000,-500.0,0.00013698,2]
[421500024,1777762241000,-166.95,0.00013699,2]
[421500018,1777762241000,-500.0,0.00013698,2]
[421500037,1777762241000,-500.0,0.00013699,2]
[421500032,1777762241000,-500.0,0.00013699,2]
[421500031,1777762241000,-500.0,0.00013699,2]
[421500029,1777762241000,-163.13,0.00013699,2]
[421500040,1777762241000,-500.0,0.00013699,2]
[421500021,1777762241000,-500.0,0.00013698,2]
[421500026,1777762241000,-5255.04300856,0.00013699,2]
[421500019,1777762241000,-500.0,0.00013698,2]
[421500030,1777762241000,-815.67,0.00013699,2]
[421500076,1777762242000,-500.0,0.00013699,2]
[421500079,1777762242000,-500.0,0.00013699,2]
[421500082,1777762242000,-778.3621152,0.00013699,2]
[421500085,1777762242000,-778.3621152,0.00013699,2]
[421500077,1777762242000,-500.0,0.00013699,2]
[421500086,1777762242000,-778.3621152,0.00013699,2]
[421500080,1777762242000,-500.0,0.00013699,2]
[421500081,1777762242000,-500.0,0.00013699,2]
[421500078,1777762242000,-500.0,0.00013699,2]
[421500074,1777762242000,-500.0,0.00013699,2]
[421500075,1777762242000,-500.0,0.00013699,2]
[421500067,1777762242000,-500.0,0.00013699,2]
[421500070,1777762242000,-500.0,0.00013699,2]
[421500069,1777762242000,-500.0,0.00013699,2]
[421500071,1777762242000,-500.0,0.00013699,2]
[421500073,1777762242000,-500.0,0.00013699,2]
[421500068,1777762242000,-500.0,0.00013699,2]
[421500065,1777762242000,-500.0,0.00013699,2]
[421500066,1777762242000,-500.0,0.00013699,2]
[421500064,1777762242000,-500.0,0.00013699,2]
[421500063,1777762242000,-500.0,0.00013699,2]
[421500083,1777762242000,-778.3621152,0.00013699,2]
[421500072,1777762242000,-500.0,0.00013699,2]
[421500084,1777762242000,-778.3621152,0.00013699,2]
[421500107,1777762242000,-778.3621152,0.00013699,2]
[421500095,1777762242000,-778.3621152,0.00013699,2]
[421500112,1777762242000,-531.58804117,0.00013699,2]
[421500111,1777762242000,-778.3621152,0.00013699,2]
[421500108,1777762242000,-778.3621152,0.00013699,2]
[421500087,1777762242000,-778.3621152,0.00013699,2]
[421500109,1777762242000,-778.3621152,0.00013699,2]
[421500106,1777762242000,-778.3621152,0.00013699,2]
[421500099,1777762242000,-778.3621152,0.00013699,2]
[421500102,1777762242000,-778.3621152,0.00013699,2]
[421500097,1777762242000,-778.3621152,0.00013699,2]
[421500100,1777762242000,-778.3621152,0.00013699,2]
[421500103,1777762242000,-778.3621152,0.00013699,2]
[421500110,1777762242000,-778.3621152,0.00013699,2]
[421500104,1777762242000,-778.3621152,0.00013699,2]
[421500098,1777762242000,-778.3621152,0.00013699,2]
[421500093,1777762242000,-778.3621152,0.00013699,2]
[421500092,1777762242000,-778.3621152,0.00013699,2]
[421500090,1777762242000,-778.3621152,0.00013699,2]
[421500091,1777762242000,-778.3621152,0.00013699,2]
[421500089,1777762242000,-778.3621152,0.00013699,2]
[421500088,1777762242000,-778.3621152,0.00013699,2]
[421500096,1777762242000,-778.3621152,0.00013699,2]
[421500105,1777762242000,-778.3621152,0.00013699,2]
[421500101,1777762242000,-778.3621152,0.00013699,2]
[421500094,1777762242000,-778.3621152,0.00013699,2]
[421500128,1777762246000,-150.0,0.00013706,2]
[421500134,1777762246000,-11403.00803768,0.00014117,2]
[421500131,1777762246000,-470.35,0.00013887,2]
[421500136,1777762246000,-10221.46253395,0.00014117,2]
[421500132,1777762246000,-150.0,0.00013951,2]
[421500129,1777762246000,-741.13,0.00013746,2]
[421500125,1777762246000,-778.36211525,0.00013699,2]
[421500130,1777762246000,-932.8,0.00013746,2]
[421500121,1777762246000,-778.3621152,0.00013699,2]
[421500126,1777762246000,-778.36211525,0.00013699,2]
[421500124,1777762246000,-778.3621152,0.00013699,2]
[421500119,1777762246000,-778.3621152,0.00013699,2]
[421500122,1777762246000,-778.3621152,0.00013699,2]
[421500117,1777762246000,-374.49,0.00012423,2]
[421500120,1777762246000,-778.3621152,0.00013699,2]
[421500118,1777762246000,-246.77407403,0.00013699,2]
[421500133,1777762246000,-34074.56741536,0.0001399,2]
[421500127,1777762246000,-778.36211525,0.00013699,2]
[421500135,1777762246000,-2192.05447388,0.00014117,2]
[421500123,1777762246000,-778.3621152,0.00013699,2]
[421500139,1777762246000,-171.0,0.00014226,2]
[421500140,1777762246000,-30.04654338,0.00014304,2]
[421500151,1777762246000,-5000.0,0.000146,2]
[421500148,1777762246000,-130.0087282,0.00014502,2]
[421500155,1777762246000,-26.73527241,0.0001467,7]
[421500150,1777762246000,-301.65267954,0.000146,2]
[421500149,1777762246000,-1989.06,0.00014513,2]
[421500154,1777762246000,-125.26472759,0.0001467,7]
[421500152,1777762246000,-168.91386467,0.000146,2]
[421500156,1777762246000,-309.08403459,0.00014673,2]
[421500153,1777762246000,-152.0,0.00014655,7]
[421500137,1777762246000,-736.0,0.00014121,2]
[421500144,1777762246000,-56.90651844,0.00014402,2]
[421500141,1777762246000,-136.90345662,0.00014304,2]
[421500145,1777762246000,-150.0,0.0001444,2]
[421500143,1777762246000,-93.09348156,0.00014402,2]
[421500146,1777762246000,-150.0,0.00014442,2]
[421500138,1777762246000,-150.0,0.00014195,2]
[421500147,1777762246000,-19.9912718,0.00014502,2]
[421500142,1777762246000,-220.41238459,0.00014342,2]
[421500183,1777762247000,-500.0,0.00014699,2]
[421500188,1777762247000,-514.71845079,0.00014699,2]
[421500196,1777762247000,-500.0,0.00014699,2]
[421500198,1777762247000,-500.0,0.00014699,2]
[421500195,1777762247000,-500.0,0.00014699,2]
[421500208,1777762247000,-154.95580236,0.00014699,2]
[421500206,1777762247000,-500.0,0.00014699,2]
[421500202,1777762247000,-500.0,0.00014699,2]
[421500197,1777762247000,-500.0,0.00014699,2]
[421500201,1777762247000,-500.0,0.00014699,2]
[421500200,1777762247000,-500.0,0.00014699,2]
[421500205,1777762247000,-500.0,0.00014699,2]
[421500203,1777762247000,-500.0,0.00014699,2]
[421500199,1777762247000,-500.0,0.00014699,2]
[421500209,1777762247000,-500.0,0.00014699,2]
[421500207,1777762247000,-500.0,0.00014699,2]
[421500189,1777762247000,-500.0,0.00014699,2]
[421500181,1777762247000,-24988.25244719,0.00014698,2]
[421500185,1777762247000,-500.0,0.00014699,2]
[421500174,1777762247000,-190.91596541,0.00014673,2]
[421500177,1777762247000,-500.0,0.00014673,2]
[421500179,1777762247000,-500.0,0.00014673,2]
[421500175,1777762247000,-500.0,0.00014673,2]
[421500178,1777762247000,-411.49853842,0.00014673,2]
[421500180,1777762247000,-292.60245782,0.00014685,2]
[421500176,1777762247000,-500.0,0.00014673,2]
[421500186,1777762247000,-500.0,0.00014699,2]
[421500210,1777762247000,-500.0,0.00014699,2]
[421500187,1777762247000,-500.0,0.00014699,2]
[421500193,1777762247000,-500.0,0.00014699,2]
[421500194,1777762247000,-507.61027951,0.00014699,2]
[421500184,1777762247000,-500.0,0.00014699,2]
[421500192,1777762247000,-500.0,0.00014699,2]
[421500191,1777762247000,-500.0,0.00014699,2]
[421500190,1777762247000,-500.0,0.00014699,2]
[421500217,1777762247000,-500.0,0.00014699,2]
[421500182,1777762247000,-12218.05585281,0.00014698,2]
[421500214,1777762247000,-500.0,0.00014699,2]
[421500239,1777762247000,-500.0,0.00014699,2]
[421500238,1777762247000,-500.0,0.00014699,2]
[421500236,1777762247000,-500.0,0.00014699,2]
[421500235,1777762247000,-500.0,0.00014699,2]
[421500245,1777762247000,-500.0,0.00014699,2]
[421500241,1777762247000,-500.0,0.00014699,2]
[421500247,1777762247000,-904.0,0.000147,5]
[421500240,1777762247000,-500.0,0.00014699,2]
[421500242,1777762247000,-500.0,0.00014699,2]
[421500243,1777762247000,-500.0,0.00014699,2]
[421500237,1777762247000,-500.0,0.00014699,2]
[421500244,1777762247000,-500.0,0.00014699,2]
[421500249,1777762247000,-469183.90126095,0.000147,2]
[421500250,1777762247000,-3271.88970174,0.000147,2]
[421500212,1777762247000,-500.0,0.00014699,2]
[421500246,1777762247000,-860.0,0.000147,5]
[421500232,1777762247000,-500.0,0.00014699,2]
[421500248,1777762247000,-250.0,0.000147,2]
[421500229,1777762247000,-500.0,0.00014699,2]
[421500213,1777762247000,-500.0,0.00014699,2]
[421500221,1777762247000,-500.0,0.00014699,2]
[421500219,1777762247000,-500.0,0.00014699,2]
[421500218,1777762247000,-500.0,0.00014699,2]
[421500215,1777762247000,-512.23310395,0.00014699,2]
[421500216,1777762247000,-500.0,0.00014699,2]
[421500223,1777762247000,-500.0,0.00014699,2]
[421500234,1777762247000,-500.0,0.00014699,2]
[421500233,1777762247000,-500.0,0.00014699,2]
[421500224,1777762247000,-270.79066518,0.00014699,2]
[421500222,1777762247000,-500.0,0.00014699,2]
[421500225,1777762247000,-500.0,0.00014699,2]
[421500226,1777762247000,-500.0,0.00014699,2]
[421500227,1777762247000,-500.0,0.00014699,2]
[421500228,1777762247000,-500.0,0.00014699,2]
[421500220,1777762247000,-500.0,0.00014699,2]
[421500230,1777762247000,-500.0,0.00014699,2]